[Event "Titled Tuesday Blitz June 13 Late 2023"]
[White "Rasulov, Vugar"]
[Black "Najer, Evgeniy"]
[WhiteFideId "13402390"]
[BlackFideId "4118987"]
[WhiteElo "2509"]
[BlackElo "2545"]
[Result "1-0"]
[Round "4"]
[TimeControl "180+2"]
[Date "2023.06.13"]
[WhiteClock "0:00:12"]
[BlackClock "0:00:00"]
[Board "13"]

1. Nf3 {[%clk 0:03:00]}  d5 {[%clk 0:02:58]} 2. e3 {[%clk 0:03:01]}  c5 {[%clk 0:02:57]} 3. d4 {[%clk 0:03:00]}  Nc6 {[%clk 0:02:56]} 4. c3 {[%clk 0:02:51]}  e6 {[%clk 0:02:52]} 5. Bd3 {[%clk 0:02:51]}  Nf6 {[%clk 0:02:52]} 6. O-O {[%clk 0:02:51]}  Bd6 {[%clk 0:02:52]} 7. dxc5 {[%clk 0:02:50]}  Bxc5 {[%clk 0:02:52]} 8. Nbd2 {[%clk 0:02:51]}  O-O {[%clk 0:02:51]} 9. e4 {[%clk 0:02:49]}  h6 {[%clk 0:02:48]} 10. Qe2 {[%clk 0:02:48]}  Qc7 {[%clk 0:02:45]} 11. b4 {[%clk 0:02:28]}  Bb6 {[%clk 0:02:18]} 12. Bb2 {[%clk 0:02:25]}  Re8 {[%clk 0:02:10]} 13. a4 {[%clk 0:02:20]}  a6 {[%clk 0:02:08]} 14. a5 {[%clk 0:02:16]}  Ba7 {[%clk 0:02:07]} 15. Rae1 {[%clk 0:02:08]}  e5 {[%clk 0:01:33]} 16. exd5 {[%clk 0:01:54]}  Nxd5 {[%clk 0:01:33]} 17. Qe4 {[%clk 0:01:54]}  Nf6 {[%clk 0:01:34]} 18. Qh4 {[%clk 0:01:55]}  Bg4 {[%clk 0:01:22]} 19. h3 {[%clk 0:01:48]}  Rad8 {[%clk 0:01:21]} 20. Bb1 {[%clk 0:01:32]}  Bh5 {[%clk 0:00:34]} 21. Ne4 {[%clk 0:01:17]}  Nxe4 {[%clk 0:00:34]} 22. Bxe4 {[%clk 0:01:17]}  Bxf3 {[%clk 0:00:29]} 23. Bxf3 {[%clk 0:01:17]}  Rd2 {[%clk 0:00:28]} 24. Re2 {[%clk 0:01:08]}  Qd8 {[%clk 0:00:16]} 25. Qxd8 {[%clk 0:00:55]}  Rexd8 {[%clk 0:00:16]} 26. Bc1 {[%clk 0:00:56]}  Rxe2 {[%clk 0:00:15]} 27. Bxe2 {[%clk 0:00:57]}  e4 {[%clk 0:00:15]} 28. Rd1 {[%clk 0:00:50]}  Rxd1+ {[%clk 0:00:14]} 29. Bxd1 {[%clk 0:00:51]}  Kf8 {[%clk 0:00:12]} 30. Kf1 {[%clk 0:00:48]}  Ke7 {[%clk 0:00:12]} 31. Bc2 {[%clk 0:00:46]}  f5 {[%clk 0:00:12]} 32. g4 {[%clk 0:00:47]}  Ne5 {[%clk 0:00:08]} 33. gxf5 {[%clk 0:00:46]}  Nd3 {[%clk 0:00:08]} 34. Be3 {[%clk 0:00:38]}  Bxe3 {[%clk 0:00:08]} 35. fxe3 {[%clk 0:00:39]}  Kf6 {[%clk 0:00:09]} 36. Bxd3 {[%clk 0:00:36]}  exd3 {[%clk 0:00:08]} 37. e4 {[%clk 0:00:37]}  Ke5 {[%clk 0:00:08]} 38. Ke1 {[%clk 0:00:30]}  Kxe4 {[%clk 0:00:08]} 39. Kd2 {[%clk 0:00:31]}  Kxf5 {[%clk 0:00:08]} 40. Kxd3 {[%clk 0:00:30]}  g5 {[%clk 0:00:09]} 41. Kd4 {[%clk 0:00:23]}  h5 {[%clk 0:00:09]} 42. c4 {[%clk 0:00:24]}  g4 {[%clk 0:00:09]} 43. hxg4+ {[%clk 0:00:24]}  Kxg4 {[%clk 0:00:09]} 44. b5 {[%clk 0:00:21]}  h4 {[%clk 0:00:08]} 45. c5 {[%clk 0:00:22]}  axb5 {[%clk 0:00:05]} 46. a6 {[%clk 0:00:21]}  h3 {[%clk 0:00:03]} 47. axb7 {[%clk 0:00:18]}  h2 {[%clk 0:00:04]} 48. b8=Q {[%clk 0:00:19]}  h1=Q {[%clk 0:00:04]} 49. Qg8+ {[%clk 0:00:19]}  Kf5 {[%clk 0:00:04]} 50. Qf7+ {[%clk 0:00:12]}  Kg4 {[%clk 0:00:04]} 51. Qe6+ {[%clk 0:00:11]}  Kf4 {[%clk 0:00:03]} 52. Qe5+ {[%clk 0:00:10]}  Kg4 {[%clk 0:00:03]} 53. Qe4+ {[%clk 0:00:10]}  Qxe4+ {[%clk 0:00:03]} 54. Kxe4 {[%clk 0:00:11]}  b4 {[%clk 0:00:03]} 55. c6 {[%clk 0:00:11]}  b3 {[%clk 0:00:00]} 56. Kd3 {[%clk 0:00:12]} 1-0


[Site "https://www.chess.com"]

[Event "Titled Tuesday Blitz June 13 Late 2023"]
[White "Erdogmus, Yagiz Kaan"]
[Black "Zhigalko, Sergei"]
[WhiteFideId "44599790"]
[BlackFideId "13502956"]
[WhiteElo "2359"]
[BlackElo "2626"]
[Result "1-0"]
[Round "4"]
[TimeControl "180+2"]
[Date "2023.06.13"]
[WhiteClock "0:00:09"]
[BlackClock "0:00:00"]
[Board "15"]

1. e4 {[%clk 0:03:00]}  c5 {[%clk 0:03:00]} 2. Nf3 {[%clk 0:02:59]}  Nc6 {[%clk 0:03:00]} 3. d4 {[%clk 0:02:59]}  cxd4 {[%clk 0:03:01]} 4. Nxd4 {[%clk 0:03:00]}  Nf6 {[%clk 0:03:02]} 5. Nc3 {[%clk 0:03:00]}  e5 {[%clk 0:03:02]} 6. Ndb5 {[%clk 0:02:58]}  d6 {[%clk 0:03:03]} 7. Bg5 {[%clk 0:02:58]}  a6 {[%clk 0:03:03]} 8. Na3 {[%clk 0:02:53]}  b5 {[%clk 0:03:04]} 9. Nd5 {[%clk 0:02:51]}  Be7 {[%clk 0:03:04]} 10. Bxf6 {[%clk 0:02:51]}  Bxf6 {[%clk 0:03:05]} 11. c4 {[%clk 0:02:52]}  b4 {[%clk 0:03:05]} 12. Nc2 {[%clk 0:02:52]}  O-O {[%clk 0:03:05]} 13. Ncxb4 {[%clk 0:02:39]}  Nxb4 {[%clk 0:03:03]} 14. Nxb4 {[%clk 0:02:40]}  Qb6 {[%clk 0:02:55]} 15. Qd2 {[%clk 0:02:38]}  Rb8 {[%clk 0:02:52]} 16. Nd3 {[%clk 0:02:36]}  Qd4 {[%clk 0:02:35]} 17. f3 {[%clk 0:02:28]}  Be6 {[%clk 0:02:25]} 18. Rd1 {[%clk 0:01:59]}  Bxc4 {[%clk 0:01:57]} 19. b3 {[%clk 0:01:58]}  Be6 {[%clk 0:01:57]} 20. Nf2 {[%clk 0:01:57]}  Qa7 {[%clk 0:01:41]} 21. Be2 {[%clk 0:01:35]}  Rfd8 {[%clk 0:01:11]} 22. Qa5 {[%clk 0:01:31]}  Bg5 {[%clk 0:01:02]} 23. O-O {[%clk 0:01:01]}  Be3 {[%clk 0:01:02]} 24. Bd3 {[%clk 0:00:46]}  d5 {[%clk 0:00:52]} 25. exd5 {[%clk 0:00:46]}  Bxd5 {[%clk 0:00:36]} 26. Bxh7+ {[%clk 0:00:37]}  Kxh7 {[%clk 0:00:36]} 27. Rxd5 {[%clk 0:00:38]}  Bb6 {[%clk 0:00:31]} 28. Qd2 {[%clk 0:00:35]}  Rxd5 {[%clk 0:00:27]} 29. Qxd5 {[%clk 0:00:36]}  Rd8 {[%clk 0:00:27]} 30. Qe4+ {[%clk 0:00:35]}  Kg8 {[%clk 0:00:24]} 31. Qe2 {[%clk 0:00:36]}  Be3 {[%clk 0:00:16]} 32. Re1 {[%clk 0:00:33]}  Bd4 {[%clk 0:00:12]} 33. Kf1 {[%clk 0:00:30]}  Rc8 {[%clk 0:00:12]} 34. Nd3 {[%clk 0:00:28]}  f6 {[%clk 0:00:09]} 35. Rc1 {[%clk 0:00:26]}  Rd8 {[%clk 0:00:07]} 36. Nb4 {[%clk 0:00:23]}  Qf7 {[%clk 0:00:03]} 37. Qc4 {[%clk 0:00:18]}  a5 {[%clk 0:00:03]} 38. Nc6 {[%clk 0:00:13]}  Ra8 {[%clk 0:00:02]} 39. Nxd4 {[%clk 0:00:13]}  exd4 {[%clk 0:00:02]} 40. Qxf7+ {[%clk 0:00:13]}  Kxf7 {[%clk 0:00:02]} 41. Rc4 {[%clk 0:00:13]}  Rd8 {[%clk 0:00:02]} 42. Ke2 {[%clk 0:00:13]}  Rd5 {[%clk 0:00:02]} 43. Kd3 {[%clk 0:00:13]}  Rg5 {[%clk 0:00:01]} 44. g4 {[%clk 0:00:13]}  Re5 {[%clk 0:00:02]} 45. Rxd4 {[%clk 0:00:13]}  Re1 {[%clk 0:00:03]} 46. Ra4 {[%clk 0:00:13]}  Rh1 {[%clk 0:00:02]} 47. Rxa5 {[%clk 0:00:12]}  Rxh2 {[%clk 0:00:03]} 48. b4 {[%clk 0:00:12]}  Rb2 {[%clk 0:00:03]} 49. a3 {[%clk 0:00:12]}  Rb3+ {[%clk 0:00:03]} 50. Ke4 {[%clk 0:00:13]}  g5 {[%clk 0:00:02]} 51. f4 {[%clk 0:00:13]}  gxf4 {[%clk 0:00:02]} 52. Kxf4 {[%clk 0:00:13]}  Kg6 {[%clk 0:00:03]} 53. Ra6 {[%clk 0:00:14]}  Rb1 {[%clk 0:00:03]} 54. Ra5 {[%clk 0:00:12]}  Rf1+ {[%clk 0:00:03]} 55. Kg3 {[%clk 0:00:13]}  Rg1+ {[%clk 0:00:03]} 56. Kf3 {[%clk 0:00:13]}  Rf1+ {[%clk 0:00:04]} 57. Kg2 {[%clk 0:00:13]}  Rb1 {[%clk 0:00:03]} 58. b5 {[%clk 0:00:11]}  Kg5 {[%clk 0:00:04]} 59. b6+ {[%clk 0:00:08]}  Kxg4 {[%clk 0:00:04]} 60. Ra4+ {[%clk 0:00:09]}  Kf5 {[%clk 0:00:03]} 61. Rb4 {[%clk 0:00:10]}  Ra1 {[%clk 0:00:01]} 62. b7 {[%clk 0:00:10]}  Ra2+ {[%clk 0:00:02]} 63. Kf1 {[%clk 0:00:10]}  Rxa3 {[%clk 0:00:00]} 64. b8=Q {[%clk 0:00:09]} 1-0


[Site "https://www.chess.com"]

[Event "Titled Tuesday Blitz June 13 Late 2023"]
[White "Simonian, Hrair"]
[Black "Kovalev, Vladislav"]
[WhiteFideId "13302337"]
[BlackFideId "13504398"]
[WhiteElo "2447"]
[BlackElo "2555"]
[Result "1/2-1/2"]
[Round "4"]
[TimeControl "180+2"]
[Date "2023.06.13"]
[WhiteClock "0:02:04"]
[BlackClock "0:00:28"]
[Board "16"]

1. e4 {[%clk 0:03:00]}  e5 {[%clk 0:02:58]} 2. Nf3 {[%clk 0:03:00]}  Nc6 {[%clk 0:02:59]} 3. Bb5 {[%clk 0:03:00]}  a6 {[%clk 0:02:59]} 4. Ba4 {[%clk 0:03:01]}  Nf6 {[%clk 0:03:00]} 5. O-O {[%clk 0:03:01]}  Be7 {[%clk 0:03:00]} 6. Bxc6 {[%clk 0:03:01]}  dxc6 {[%clk 0:03:00]} 7. d3 {[%clk 0:03:02]}  Nd7 {[%clk 0:02:57]} 8. Nbd2 {[%clk 0:03:02]}  O-O {[%clk 0:02:47]} 9. Nc4 {[%clk 0:03:03]}  f6 {[%clk 0:02:31]} 10. Nh4 {[%clk 0:03:03]}  Nc5 {[%clk 0:02:27]} 11. Nf5 {[%clk 0:03:03]}  Bxf5 {[%clk 0:02:18]} 12. exf5 {[%clk 0:03:04]}  Qd7 {[%clk 0:02:17]} 13. Qf3 {[%clk 0:03:04]}  a5 {[%clk 0:02:13]} 14. Be3 {[%clk 0:03:04]}  a4 {[%clk 0:02:12]} 15. Nd2 {[%clk 0:03:03]}  Qd5 {[%clk 0:02:04]} 16. Ne4 {[%clk 0:03:01]}  Nxe4 {[%clk 0:02:01]} 17. Qxe4 {[%clk 0:03:02]}  Rfd8 {[%clk 0:01:51]} 18. f3 {[%clk 0:02:58]}  Bc5 {[%clk 0:01:37]} 19. Bf2 {[%clk 0:02:52]}  Bxf2+ {[%clk 0:01:37]} 20. Rxf2 {[%clk 0:02:51]}  Qd4 {[%clk 0:01:35]} 21. Qxd4 {[%clk 0:02:48]}  Rxd4 {[%clk 0:01:36]} 22. Re1 {[%clk 0:02:41]}  Rb4 {[%clk 0:01:32]} 23. b3 {[%clk 0:02:34]}  axb3 {[%clk 0:01:32]} 24. axb3 {[%clk 0:02:35]}  Rf4 {[%clk 0:01:32]} 25. g4 {[%clk 0:02:32]}  h5 {[%clk 0:01:32]} 26. h3 {[%clk 0:02:31]}  Ra2 {[%clk 0:01:27]} 27. Re4 {[%clk 0:02:26]}  h4 {[%clk 0:01:12]} 28. Rxf4 {[%clk 0:02:20]}  exf4 {[%clk 0:01:13]} 29. Re2 {[%clk 0:02:21]}  Kf7 {[%clk 0:01:12]} 30. Kf2 {[%clk 0:02:16]}  c5 {[%clk 0:01:09]} 31. Kg2 {[%clk 0:02:08]}  b6 {[%clk 0:01:08]} 32. Kf2 {[%clk 0:02:08]}  Rb2 {[%clk 0:01:05]} 33. Kg2 {[%clk 0:02:08]}  Rb1 {[%clk 0:01:06]} 34. Kf2 {[%clk 0:02:07]}  Rc1 {[%clk 0:01:06]} 35. Kg2 {[%clk 0:02:05]}  Ra1 {[%clk 0:00:57]} 36. Kf2 {[%clk 0:02:05]}  Ra2 {[%clk 0:00:57]} 37. Kg2 {[%clk 0:02:05]}  Ra8 {[%clk 0:00:55]} 38. Kf2 {[%clk 0:02:05]}  Ra2 {[%clk 0:00:52]} 39. Kg2 {[%clk 0:02:05]}  Ra1 {[%clk 0:00:27]} 40. Kf2 {[%clk 0:02:04]}  Rc1 {[%clk 0:00:27]} 41. Kg2 {[%clk 0:02:04]}  Kf8 {[%clk 0:00:27]} 42. Kf2 {[%clk 0:02:04]}  Kf7 {[%clk 0:00:28]} 1/2-1/2


[Site "https://www.chess.com"]

[Event "Titled Tuesday Blitz June 13 Late 2023"]
[White "Sarana, Alexey"]
[Black "Harsh Suresh"]
[WhiteFideId "24133795"]
[BlackFideId "45018464"]
[WhiteElo "2714"]
[BlackElo "2209"]
[Result "1-0"]
[Round "4"]
[TimeControl "180+2"]
[Date "2023.06.13"]
[WhiteClock "0:00:29"]
[BlackClock "0:00:07"]
[Board "20"]

1. c4 {[%clk 0:03:00]}  Nf6 {[%clk 0:02:56]} 2. Nc3 {[%clk 0:03:01]}  e5 {[%clk 0:02:48]} 3. Nf3 {[%clk 0:03:01]}  Nc6 {[%clk 0:02:44]} 4. g3 {[%clk 0:03:01]}  Bb4 {[%clk 0:02:41]} 5. Nd5 {[%clk 0:03:01]}  Bc5 {[%clk 0:02:40]} 6. Bg2 {[%clk 0:03:02]}  d6 {[%clk 0:02:40]} 7. O-O {[%clk 0:03:01]}  O-O {[%clk 0:02:37]} 8. e3 {[%clk 0:03:02]}  Bg4 {[%clk 0:02:34]} 9. h3 {[%clk 0:03:00]}  Bxf3 {[%clk 0:02:34]} 10. Qxf3 {[%clk 0:02:55]}  Re8 {[%clk 0:02:29]} 11. Nxf6+ {[%clk 0:02:54]}  Qxf6 {[%clk 0:02:30]} 12. Qxf6 {[%clk 0:02:54]}  gxf6 {[%clk 0:02:31]} 13. Be4 {[%clk 0:02:49]}  Rab8 {[%clk 0:02:28]} 14. a3 {[%clk 0:02:46]}  a5 {[%clk 0:02:27]} 15. b3 {[%clk 0:02:45]}  Ne7 {[%clk 0:02:26]} 16. g4 {[%clk 0:02:38]}  b5 {[%clk 0:02:24]} 17. d3 {[%clk 0:02:31]}  bxc4 {[%clk 0:02:24]} 18. bxc4 {[%clk 0:02:32]}  a4 {[%clk 0:02:10]} 19. Rd1 {[%clk 0:02:31]}  d5 {[%clk 0:01:45]} 20. cxd5 {[%clk 0:02:29]}  Bd6 {[%clk 0:01:45]} 21. Ra2 {[%clk 0:02:16]}  Rb3 {[%clk 0:01:43]} 22. Rc2 {[%clk 0:02:15]}  Reb8 {[%clk 0:01:36]} 23. Rc4 {[%clk 0:02:15]}  Rb1 {[%clk 0:01:33]} 24. Rxa4 {[%clk 0:01:36]}  Ra1 {[%clk 0:01:28]} 25. d4 {[%clk 0:01:37]}  Rb3 {[%clk 0:01:25]} 26. Kg2 {[%clk 0:01:26]}  exd4 {[%clk 0:01:08]} 27. Raxd4 {[%clk 0:01:25]}  Ng6 {[%clk 0:01:01]} 28. Bc2 {[%clk 0:01:20]}  Nh4+ {[%clk 0:00:55]} 29. Kf1 {[%clk 0:01:15]}  Rb8 {[%clk 0:00:41]} 30. a4 {[%clk 0:01:06]}  Nf3 {[%clk 0:00:38]} 31. Rc4 {[%clk 0:01:01]}  Ne5 {[%clk 0:00:35]} 32. Rc3 {[%clk 0:01:01]}  Nd7 {[%clk 0:00:28]} 33. Bd2 {[%clk 0:00:43]}  Ra2 {[%clk 0:00:25]} 34. Be1 {[%clk 0:00:43]}  Be5 {[%clk 0:00:20]} 35. Rc6 {[%clk 0:00:41]}  Rbb2 {[%clk 0:00:20]} 36. Bf5 {[%clk 0:00:33]}  Nb6 {[%clk 0:00:20]} 37. a5 {[%clk 0:00:30]}  Na4 {[%clk 0:00:16]} 38. Bb1 {[%clk 0:00:29]}  Ra1 {[%clk 0:00:15]} 39. Bxh7+ {[%clk 0:00:28]}  Kxh7 {[%clk 0:00:13]} 40. Rxa1 {[%clk 0:00:29]}  Rxf2+ {[%clk 0:00:07]} 41. Kxf2 {[%clk 0:00:29]} 1-0


[Site "https://www.chess.com"]

[Event "Titled Tuesday Blitz June 13 Late 2023"]
[White "Swiercz, Dariusz"]
[Black "Oro, Faustino"]
[WhiteFideId "1126881"]
[BlackFideId "20000197"]
[WhiteElo "2620"]
[BlackElo "1984"]
[Result "1-0"]
[Round "4"]
[TimeControl "180+2"]
[Date "2023.06.13"]
[WhiteClock "0:01:26"]
[BlackClock "0:00:01"]
[Board "27"]

1. e4 {[%clk 0:03:00]}  e5 {[%clk 0:02:58]} 2. Nf3 {[%clk 0:02:58]}  Nc6 {[%clk 0:02:58]} 3. Bb5 {[%clk 0:02:58]}  Nf6 {[%clk 0:02:57]} 4. O-O {[%clk 0:02:57]}  Nxe4 {[%clk 0:02:55]} 5. d4 {[%clk 0:02:58]}  Nd6 {[%clk 0:02:53]} 6. Bxc6 {[%clk 0:02:58]}  dxc6 {[%clk 0:02:54]} 7. dxe5 {[%clk 0:02:59]}  Nf5 {[%clk 0:02:54]} 8. Qxd8+ {[%clk 0:02:59]}  Kxd8 {[%clk 0:02:55]} 9. h3 {[%clk 0:03:00]}  h6 {[%clk 0:02:54]} 10. Nc3 {[%clk 0:02:59]}  Be7 {[%clk 0:02:53]} 11. b3 {[%clk 0:02:57]}  Be6 {[%clk 0:02:51]} 12. Ne2 {[%clk 0:02:52]}  Kc8 {[%clk 0:02:09]} 13. Nf4 {[%clk 0:02:49]}  Bd5 {[%clk 0:01:46]} 14. Nxd5 {[%clk 0:02:36]}  cxd5 {[%clk 0:01:47]} 15. g4 {[%clk 0:02:36]}  Nh4 {[%clk 0:01:47]} 16. Nxh4 {[%clk 0:02:37]}  Bxh4 {[%clk 0:01:47]} 17. f4 {[%clk 0:02:36]}  Re8 {[%clk 0:01:31]} 18. Kg2 {[%clk 0:02:30]}  Kd7 {[%clk 0:01:13]} 19. Bb2 {[%clk 0:02:26]}  Kc6 {[%clk 0:01:09]} 20. Rad1 {[%clk 0:02:24]}  Rad8 {[%clk 0:01:09]} 21. Rd3 {[%clk 0:02:20]}  Kb6 {[%clk 0:01:04]} 22. Rfd1 {[%clk 0:02:11]}  c6 {[%clk 0:01:04]} 23. Kf3 {[%clk 0:02:11]}  Be7 {[%clk 0:01:02]} 24. f5 {[%clk 0:01:59]}  Bf8 {[%clk 0:00:49]} 25. c4 {[%clk 0:01:58]}  Rc8 {[%clk 0:00:27]} 26. cxd5 {[%clk 0:01:56]}  cxd5 {[%clk 0:00:28]} 27. Rxd5 {[%clk 0:01:56]}  Rc2 {[%clk 0:00:28]} 28. R1d2 {[%clk 0:01:56]}  Rec8 {[%clk 0:00:27]} 29. Bd4+ {[%clk 0:01:49]}  Ka6 {[%clk 0:00:26]} 30. Rxc2 {[%clk 0:01:46]}  Rxc2 {[%clk 0:00:27]} 31. Rd7 {[%clk 0:01:44]}  f6 {[%clk 0:00:07]} 32. e6 {[%clk 0:01:32]}  Rd2 {[%clk 0:00:06]} 33. Bxf6 {[%clk 0:01:30]}  Rxa2 {[%clk 0:00:01]} 34. Bxg7 {[%clk 0:01:26]} 1-0


[Site "https://www.chess.com"]

[Event "Titled Tuesday Blitz June 13 Late 2023"]
[White "Xiong, Jeffery"]
[Black "Makridis, Dimitrios"]
[WhiteFideId "2047640"]
[BlackFideId "25864475"]
[WhiteElo "2726"]
[BlackElo "2277"]
[Result "1-0"]
[Round "4"]
[TimeControl "180+2"]
[Date "2023.06.13"]
[WhiteClock "0:01:51"]
[BlackClock "0:00:52"]
[Board "28"]

1. e4 {[%clk 0:03:00]}  c5 {[%clk 0:02:59]} 2. Nf3 {[%clk 0:03:00]}  Nf6 {[%clk 0:03:00]} 3. Nc3 {[%clk 0:02:59]}  d5 {[%clk 0:03:00]} 4. exd5 {[%clk 0:03:00]}  Nxd5 {[%clk 0:03:00]} 5. Bb5+ {[%clk 0:02:58]}  Bd7 {[%clk 0:03:00]} 6. Ne5 {[%clk 0:02:59]}  Nf6 {[%clk 0:03:00]} 7. Nxd7 {[%clk 0:02:44]}  Nbxd7 {[%clk 0:03:00]} 8. a4 {[%clk 0:02:45]}  a6 {[%clk 0:03:00]} 9. Bxd7+ {[%clk 0:02:45]}  Qxd7 {[%clk 0:03:00]} 10. a5 {[%clk 0:02:46]}  e6 {[%clk 0:03:00]} 11. O-O {[%clk 0:02:47]}  Bd6 {[%clk 0:02:58]} 12. Qe2 {[%clk 0:02:47]}  O-O {[%clk 0:02:58]} 13. d3 {[%clk 0:02:46]}  Nd5 {[%clk 0:02:58]} 14. Bd2 {[%clk 0:02:46]}  Nb4 {[%clk 0:02:57]} 15. Be3 {[%clk 0:02:45]}  Qc6 {[%clk 0:02:51]} 16. h3 {[%clk 0:02:29]}  Be5 {[%clk 0:02:48]} 17. Rfc1 {[%clk 0:02:25]}  Rad8 {[%clk 0:02:40]} 18. Na4 {[%clk 0:02:24]}  Bd4 {[%clk 0:02:37]} 19. Bg5 {[%clk 0:02:24]}  f6 {[%clk 0:02:33]} 20. Bd2 {[%clk 0:02:24]}  Nd5 {[%clk 0:02:26]} 21. Re1 {[%clk 0:02:19]}  Rde8 {[%clk 0:02:21]} 22. Qf3 {[%clk 0:02:15]}  Qc7 {[%clk 0:02:04]} 23. c3 {[%clk 0:02:09]}  Be5 {[%clk 0:02:04]} 24. Be3 {[%clk 0:02:09]}  Nxe3 {[%clk 0:02:01]} 25. Qxe3 {[%clk 0:02:10]}  Bh2+ {[%clk 0:02:01]} 26. Kh1 {[%clk 0:02:09]}  Bd6 {[%clk 0:02:02]} 27. Nb6 {[%clk 0:02:09]}  Kh8 {[%clk 0:01:53]} 28. Nc4 {[%clk 0:02:10]}  Bf4 {[%clk 0:01:45]} 29. Qf3 {[%clk 0:02:10]}  e5 {[%clk 0:01:36]} 30. Re2 {[%clk 0:02:10]}  Rd8 {[%clk 0:01:35]} 31. Rd1 {[%clk 0:02:07]}  Rd7 {[%clk 0:01:32]} 32. g3 {[%clk 0:02:07]}  Bh6 {[%clk 0:01:20]} 33. Rxe5 {[%clk 0:02:00]}  Rfd8 {[%clk 0:01:10]} 34. Re6 {[%clk 0:02:01]}  Re7 {[%clk 0:00:59]} 35. Rde1 {[%clk 0:01:58]}  Rxe6 {[%clk 0:00:59]} 36. Rxe6 {[%clk 0:01:59]}  Qd7 {[%clk 0:01:00]} 37. Qe4 {[%clk 0:01:54]}  Bc1 {[%clk 0:00:52]} 38. Kg2 {[%clk 0:01:51]} 1-0


[Site "https://www.chess.com"]

[Event "Titled Tuesday Blitz June 13 Late 2023"]
[White "Saveliev, Alexei"]
[Black "Chigaev, Maksim"]
[WhiteFideId "24128546"]
[BlackFideId "4108116"]
[WhiteElo "2271"]
[BlackElo "2561"]
[Result "1-0"]
[Round "4"]
[TimeControl "180+2"]
[Date "2023.06.13"]
[WhiteClock "0:00:12"]
[BlackClock "0:00:15"]
[Board "30"]

1. c4 {[%clk 0:02:57]}  g6 {[%clk 0:02:59]} 2. Nc3 {[%clk 0:02:53]}  Bg7 {[%clk 0:03:00]} 3. d4 {[%clk 0:02:54]}  d6 {[%clk 0:03:00]} 4. e4 {[%clk 0:02:54]}  Nf6 {[%clk 0:03:01]} 5. f4 {[%clk 0:02:54]}  O-O {[%clk 0:03:01]} 6. Nf3 {[%clk 0:02:55]}  c5 {[%clk 0:03:00]} 7. d5 {[%clk 0:02:55]}  e6 {[%clk 0:03:01]} 8. Be2 {[%clk 0:02:56]}  exd5 {[%clk 0:03:01]} 9. cxd5 {[%clk 0:02:57]}  Nbd7 {[%clk 0:03:01]} 10. e5 {[%clk 0:02:50]}  dxe5 {[%clk 0:02:41]} 11. fxe5 {[%clk 0:02:51]}  Ng4 {[%clk 0:02:41]} 12. Bg5 {[%clk 0:02:18]}  Qb6 {[%clk 0:02:41]} 13. O-O {[%clk 0:02:18]}  Ndxe5 {[%clk 0:02:32]} 14. Nxe5 {[%clk 0:02:19]}  Nxe5 {[%clk 0:02:32]} 15. Be7 {[%clk 0:02:10]}  Re8 {[%clk 0:02:08]} 16. d6 {[%clk 0:02:10]}  Be6 {[%clk 0:02:05]} 17. Nd5 {[%clk 0:02:07]}  Bxd5 {[%clk 0:01:36]} 18. Qxd5 {[%clk 0:02:08]}  Qxb2 {[%clk 0:01:37]} 19. Bc4 {[%clk 0:01:35]}  Qd4+ {[%clk 0:01:12]} 20. Qxd4 {[%clk 0:01:13]}  cxd4 {[%clk 0:01:13]} 21. Bb5 {[%clk 0:01:11]}  Rxe7 {[%clk 0:00:35]} 22. dxe7 {[%clk 0:01:10]}  Nc6 {[%clk 0:00:36]} 23. Rae1 {[%clk 0:00:59]}  Re8 {[%clk 0:00:35]} 24. Bc4 {[%clk 0:00:51]}  Rxe7 {[%clk 0:00:23]} 25. Rxe7 {[%clk 0:00:42]}  Nxe7 {[%clk 0:00:24]} 26. Rxf7 {[%clk 0:00:39]}  Nc6 {[%clk 0:00:18]} 27. Rxb7+ {[%clk 0:00:31]}  Kh8 {[%clk 0:00:17]} 28. Rc7 {[%clk 0:00:28]}  Nd8 {[%clk 0:00:17]} 29. Rxa7 {[%clk 0:00:23]}  Bf6 {[%clk 0:00:13]} 30. Rd7 {[%clk 0:00:20]}  Nc6 {[%clk 0:00:08]} 31. Bb5 {[%clk 0:00:08]}  Ne5 {[%clk 0:00:08]} 32. Rd5 {[%clk 0:00:05]}  Kg7 {[%clk 0:00:07]} 33. a4 {[%clk 0:00:06]}  Ng4 {[%clk 0:00:02]} 34. a5 {[%clk 0:00:05]}  Ne3 {[%clk 0:00:03]} 35. Rd7+ {[%clk 0:00:05]}  Kh6 {[%clk 0:00:03]} 36. a6 {[%clk 0:00:05]}  Nf5 {[%clk 0:00:02]} 37. a7 {[%clk 0:00:03]}  Bg5 {[%clk 0:00:03]} 38. g3 {[%clk 0:00:03]}  Be3+ {[%clk 0:00:04]} 39. Kg2 {[%clk 0:00:04]}  d3 {[%clk 0:00:04]} 40. Bxd3 {[%clk 0:00:04]}  Bxa7 {[%clk 0:00:04]} 41. Bxf5 {[%clk 0:00:04]}  Be3 {[%clk 0:00:04]} 42. Bg4 {[%clk 0:00:04]}  Bg5 {[%clk 0:00:04]} 43. h4 {[%clk 0:00:04]}  Bf6 {[%clk 0:00:05]} 44. Be6 {[%clk 0:00:04]}  Be5 {[%clk 0:00:04]} 45. Bg8 {[%clk 0:00:05]}  Bg7 {[%clk 0:00:05]} 46. Kh3 {[%clk 0:00:04]}  g5 {[%clk 0:00:06]} 47. Rd6+ {[%clk 0:00:05]}  Bf6 {[%clk 0:00:05]} 48. Rxf6+ {[%clk 0:00:05]}  Kg7 {[%clk 0:00:06]} 49. Ra6 {[%clk 0:00:05]}  Kxg8 {[%clk 0:00:07]} 50. hxg5 {[%clk 0:00:06]}  Kg7 {[%clk 0:00:08]} 51. Kg4 {[%clk 0:00:06]}  Kg8 {[%clk 0:00:09]} 52. Ra7 {[%clk 0:00:07]}  Kh8 {[%clk 0:00:09]} 53. Kh5 {[%clk 0:00:07]}  Kg8 {[%clk 0:00:10]} 54. Kh6 {[%clk 0:00:08]}  Kf8 {[%clk 0:00:10]} 55. Kxh7 {[%clk 0:00:08]}  Ke8 {[%clk 0:00:11]} 56. g6 {[%clk 0:00:09]}  Kd8 {[%clk 0:00:12]} 57. Rf7 {[%clk 0:00:09]}  Kc8 {[%clk 0:00:13]} 58. Kg7 {[%clk 0:00:10]}  Kb8 {[%clk 0:00:14]} 59. Kf6 {[%clk 0:00:10]}  Ka8 {[%clk 0:00:14]} 60. g7 {[%clk 0:00:11]}  Kb8 {[%clk 0:00:15]} 61. g8=Q# {[%clk 0:00:12]} 1-0


[Site "https://www.chess.com"]